[Event "Betsys MČR v online bleskovém šachu 2021"]
[Site "Chess.com"]
[Date "2021.04.17"]
[Round "9"]
[White "Dasty78"]
[Black "HonzaRubes95"]
[Result "0-1"]
[WhiteElo "2018"]
[BlackElo "2461"]
[TimeControl "180+1"]
[EndTime "10:29:06 PDT"]
[Termination "Uživatel HonzaRubes95 zvítězil po vzdání soupeře"]

1. e4 {[%clk 0:02:58.3]} 1... c5 {[%clk 0:02:57.2]} 2. Nf3 {[%clk 0:02:58.3]}
2... Nc6 {[%clk 0:02:56.6]} 3. Nc3 {[%clk 0:02:57.4]} 3... g6 {[%clk 0:02:56.4]}
4. d4 {[%clk 0:02:57.3]} 4... cxd4 {[%clk 0:02:56.7]} 5. Nxd4 {[%clk 0:02:57.6]}
5... Bg7 {[%clk 0:02:57.6]} 6. Be3 {[%clk 0:02:57.6]} 6... Nf6 {[%clk
0:02:57.4]} 7. Nxc6 {[%clk 0:02:57.6]} 7... bxc6 {[%clk 0:02:56.5]} 8. e5 {[%clk
0:02:58]} 8... Ng8 {[%clk 0:02:56.8]} 9. f4 {[%clk 0:02:57]} 9... f6 {[%clk
0:02:55.1]} 10. e6 {[%clk 0:02:56.9]} 10... dxe6 {[%clk 0:02:46.7]} 11. Qxd8+
{[%clk 0:02:55.9]} 11... Kxd8 {[%clk 0:02:46.6]} 12. O-O-O+ {[%clk 0:02:55.9]}
12... Kc7 {[%clk 0:02:46.3]} 13. Bc4 {[%clk 0:02:54.6]} 13... f5 {[%clk
0:02:43.2]} 14. Rhe1 {[%clk 0:02:52.9]} 14... Nf6 {[%clk 0:02:25.4]} 15. Bc5
{[%clk 0:02:41.9]} 15... Nd5 {[%clk 0:02:22.7]} 16. Nxd5+ {[%clk 0:01:27.3]}
16... cxd5 {[%clk 0:02:20.6]} 17. Bb3 {[%clk 0:01:17.5]} 17... Bf6 {[%clk
0:02:09.7]} 18. h3 {[%clk 0:01:15]} 18... Bd7 {[%clk 0:02:06.4]} 19. g4 {[%clk
0:01:07.7]} 19... a5 {[%clk 0:02:04.6]} 20. g5 {[%clk 0:01:01.4]} 20... Bg7
{[%clk 0:02:04.9]} 21. a4 {[%clk 0:00:52.2]} 21... Rhb8 {[%clk 0:02:02.4]} 22.
Bxe7 {[%clk 0:00:39.2]} 22... Bf8 {[%clk 0:02:00.9]} 23. Bxf8 {[%clk 0:00:36.4]}
23... Rxf8 {[%clk 0:02:01.8]} 24. c3 {[%clk 0:00:32.4]} 24... Rab8 {[%clk
0:01:59.3]} 25. Bc2 {[%clk 0:00:28.6]} 25... Rb6 {[%clk 0:02:00]} 26. b3 {[%clk
0:00:26.8]} 26... Rfb8 {[%clk 0:01:59.6]} 27. Rd4 {[%clk 0:00:23.8]} 27... Rc6
{[%clk 0:01:59.3]} 28. Kd2 {[%clk 0:00:20.5]} 28... Kd6 {[%clk 0:01:58.7]} 29.
h4 {[%clk 0:00:20]} 29... Rbc8 {[%clk 0:01:55.6]} 30. Re3 {[%clk 0:00:18.8]}
30... Be8 {[%clk 0:01:54.5]} 31. Bd1 {[%clk 0:00:15]} 31... R8c7 {[%clk
0:01:50.2]} 32. Be2 {[%clk 0:00:14.7]} 32... Rb6 {[%clk 0:01:49]} 33. Bd1 {[%clk
0:00:14.3]} 33... Bd7 {[%clk 0:01:49]} 34. Be2 {[%clk 0:00:14.2]} 34... Rxb3
{[%clk 0:01:47.7]} 35. Bd1 {[%clk 0:00:12]} 35... Rb2+ {[%clk 0:01:47.9]} 36.
Kd3 {[%clk 0:00:09.6]} 36... Bc8 {[%clk 0:01:47.2]} 37. Rh3 {[%clk 0:00:06.9]}
37... Ba6+ {[%clk 0:01:47.1]} 0-1

[Event "Betsys MČR v online bleskovém šachu 2021"]
[Site "Chess.com"]
[Date "2021.04.17"]
[Round "9"]
[White "ZdenekRomanek"]
[Black "pkozubik"]
[Result "0-1"]
[WhiteElo "1574"]
[BlackElo "1182"]
[TimeControl "180+1"]
[EndTime "10:29:07 PDT"]
[Termination "Uživatel pkozubik zvítězil po vzdání soupeře"]

1. d4 {[%clk 0:02:57.2]} 1... Nf6 {[%clk 0:02:57.8]} 2. c4 {[%clk 0:02:56.7]}
2... g6 {[%clk 0:02:57.4]} 3. Nc3 {[%clk 0:02:56.1]} 3... Bg7 {[%clk 0:02:57.4]}
4. e4 {[%clk 0:02:55.7]} 4... d6 {[%clk 0:02:53.4]} 5. Bd3 {[%clk 0:02:54.6]}
5... O-O {[%clk 0:02:51.4]} 6. f4 {[%clk 0:02:53.8]} 6... Nc6 {[%clk 0:02:46.6]}
7. Nf3 {[%clk 0:02:52.5]} 7... Bg4 {[%clk 0:02:43.7]} 8. Be3 {[%clk 0:02:45.2]}
8... e5 {[%clk 0:02:33.5]} 9. d5 {[%clk 0:02:40.8]} 9... Nb4 {[%clk 0:02:33.2]}
10. Bb1 {[%clk 0:02:35.1]} 10... exf4 {[%clk 0:02:30.4]} 11. Bxf4 {[%clk
0:02:31.7]} 11... Re8 {[%clk 0:02:30]} 12. O-O {[%clk 0:02:26.5]} 12... c6
{[%clk 0:02:03]} 13. Qb3 {[%clk 0:02:17.7]} 13... c5 {[%clk 0:01:56.9]} 14. a3
{[%clk 0:02:12.3]} 14... Na6 {[%clk 0:01:25.5]} 15. Qxb7 {[%clk 0:02:10.9]}
15... Rb8 {[%clk 0:01:19.3]} 16. Qxa6 {[%clk 0:02:07.8]} 16... Rxb2 {[%clk
0:01:19.2]} 17. Qxd6 {[%clk 0:01:58]} 17... Qa5 {[%clk 0:01:05.3]} 18. e5 {[%clk
0:01:37.1]} 18... Nh5 {[%clk 0:00:58.3]} 19. Ne4 {[%clk 0:01:32.9]} 19... Nxf4
{[%clk 0:00:55.1]} 20. Nxc5 {[%clk 0:01:10.7]} 20... Bxf3 {[%clk 0:00:45.1]} 21.
Rxf3 {[%clk 0:00:58.5]} 21... Qe1+ {[%clk 0:00:37.8]} 22. Rf1 {[%clk 0:00:56]}
22... Rxg2+ {[%clk 0:00:37.4]} 0-1

[Event "Betsys MČR v online bleskovém šachu 2021"]
[Site "Chess.com"]
[Date "2021.04.17"]
[Round "9"]
[White "tudlenudle"]
[Black "Paulz64"]
[Result "0-1"]
[WhiteElo "1953"]
[BlackElo "2474"]
[TimeControl "180+1"]
[EndTime "10:29:08 PDT"]
[Termination "Uživatel Paulz64 zvítězil po vzdání soupeře"]

1. e4 {[%clk 0:03:00.9]} 1... c5 {[%clk 0:02:59.9]} 2. Nf3 {[%clk 0:03:01.2]}
2... e6 {[%clk 0:03:00.4]} 3. d4 {[%clk 0:03:01.4]} 3... cxd4 {[%clk 0:03:00.6]}
4. Nxd4 {[%clk 0:03:02.3]} 4... a6 {[%clk 0:03:01.1]} 5. Nc3 {[%clk 0:03:02.7]}
5... Qc7 {[%clk 0:03:01.1]} 6. g3 {[%clk 0:03:01.7]} 6... Bb4 {[%clk 0:02:59]}
7. Ne2 {[%clk 0:02:59.2]} 7... Nf6 {[%clk 0:02:58.6]} 8. Bg2 {[%clk 0:02:59.6]}
8... O-O {[%clk 0:02:58.6]} 9. O-O {[%clk 0:02:59.9]} 9... d6 {[%clk 0:02:58.8]}
10. a3 {[%clk 0:02:49.4]} 10... Ba5 {[%clk 0:02:55.3]} 11. b4 {[%clk 0:02:45.7]}
11... Bb6 {[%clk 0:02:54.9]} 12. Bb2 {[%clk 0:02:46.1]} 12... Nbd7 {[%clk
0:02:54.1]} 13. h3 {[%clk 0:02:39.4]} 13... Ne5 {[%clk 0:02:54.1]} 14. Rc1
{[%clk 0:02:33.6]} 14... Nc4 {[%clk 0:02:53.7]} 15. Ba1 {[%clk 0:02:34]} 15...
Nxa3 {[%clk 0:02:53.4]} 16. Kh2 {[%clk 0:02:27.9]} 16... Nc4 {[%clk 0:02:51.1]}
17. Qd3 {[%clk 0:02:19]} 17... Bd7 {[%clk 0:02:45.8]} 18. Nd4 {[%clk 0:02:05.7]}
18... Rac8 {[%clk 0:02:42.1]} 19. f4 {[%clk 0:02:01.1]} 19... e5 {[%clk
0:02:35.1]} 20. Nf5 {[%clk 0:01:55.5]} 20... Bxf5 {[%clk 0:02:31.7]} 21. exf5
{[%clk 0:01:54.3]} 21... Rfe8 {[%clk 0:02:21.4]} 22. g4 {[%clk 0:01:49.3]} 22...
Be3 {[%clk 0:02:17.2]} 23. Rce1 {[%clk 0:01:27.8]} 23... exf4 {[%clk 0:02:07.6]}
24. g5 {[%clk 0:01:25.8]} 24... Ne5 {[%clk 0:02:07.4]} 25. Qd1 {[%clk
0:01:10.3]} 25... Nfd7 {[%clk 0:02:06]} 26. Be4 {[%clk 0:00:58]} 26... Qc4
{[%clk 0:01:55.8]} 27. Qh5 {[%clk 0:00:49.8]} 27... d5 {[%clk 0:01:47.3]} 28.
Bxd5 {[%clk 0:00:43.1]} 28... Qxb4 {[%clk 0:01:42.9]} 29. Ne4 {[%clk 0:00:17.9]}
29... Rxc2+ {[%clk 0:01:41.3]} 30. Kh1 {[%clk 0:00:13.7]} 30... Qb5 {[%clk
0:01:40.8]} 31. Bxf7+ {[%clk 0:00:07.6]} 31... Nxf7 {[%clk 0:01:40]} 32. g6
{[%clk 0:00:08.2]} 32... hxg6 {[%clk 0:01:39.8]} 33. fxg6 {[%clk 0:00:07.7]}
33... Qxh5 {[%clk 0:01:38.9]} 0-1

[Event "Betsys MČR v online bleskovém šachu 2021"]
[Site "Chess.com"]
[Date "2021.04.17"]
[Round "9"]
[White "bumurubac"]
[Black "Tomasn2003"]
[Result "0-1"]
[WhiteElo "1022"]
[BlackElo "1153"]
[TimeControl "180+1"]
[EndTime "10:29:10 PDT"]
[Termination "Uživatel Tomasn2003 zvítězil matem"]

1. e4 {[%clk 0:03:00.9]} 1... c5 {[%clk 0:02:59.7]} 2. Bc4 {[%clk 0:02:59.6]}
2... Nc6 {[%clk 0:02:59.1]} 3. Qh5 {[%clk 0:02:59.1]} 3... d5 {[%clk 0:02:44.3]}
4. exd5 {[%clk 0:02:57.8]} 4... Na5 {[%clk 0:02:39.5]} 5. Bb3 {[%clk 0:02:40.8]}
5... Nxb3 {[%clk 0:02:38.6]} 6. cxb3 {[%clk 0:02:40.6]} 6... Nf6 {[%clk
0:02:38.6]} 7. Qf3 {[%clk 0:02:39.3]} 7... Qxd5 {[%clk 0:02:37.4]} 8. Qxd5
{[%clk 0:02:38.8]} 8... Nxd5 {[%clk 0:02:37.1]} 9. Nc3 {[%clk 0:02:36.8]} 9...
Nxc3 {[%clk 0:02:36.4]} 10. dxc3 {[%clk 0:02:36.3]} 10... g6 {[%clk 0:02:36]}
11. Nf3 {[%clk 0:02:35.7]} 11... Bg7 {[%clk 0:02:35.8]} 12. O-O {[%clk
0:02:34.8]} 12... Bg4 {[%clk 0:02:34.9]} 13. Bg5 {[%clk 0:02:32.7]} 13... Bxf3
{[%clk 0:02:30.5]} 14. gxf3 {[%clk 0:02:32.3]} 14... e6 {[%clk 0:02:30.6]} 15.
Rad1 {[%clk 0:02:30.6]} 15... O-O {[%clk 0:02:28.7]} 16. Rd7 {[%clk 0:02:28.5]}
16... b6 {[%clk 0:02:28.3]} 17. Rfd1 {[%clk 0:02:25]} 17... h6 {[%clk
0:02:26.3]} 18. Be7 {[%clk 0:02:23.4]} 18... Rfe8 {[%clk 0:02:25.2]} 19. Bd6
{[%clk 0:02:20.3]} 19... Red8 {[%clk 0:02:17.3]} 20. Be7 {[%clk 0:02:18.3]}
20... Rxd7 {[%clk 0:02:16.5]} 21. Rxd7 {[%clk 0:02:17.8]} 21... Bf8 {[%clk
0:02:13.8]} 22. Rd8 {[%clk 0:02:15.2]} 22... Rxd8 {[%clk 0:02:12.7]} 23. Bxd8
{[%clk 0:02:14.9]} 23... f5 {[%clk 0:02:11.6]} 24. b4 {[%clk 0:02:13.1]} 24...
cxb4 {[%clk 0:02:11.1]} 25. cxb4 {[%clk 0:02:12.7]} 25... Bxb4 {[%clk
0:02:08.5]} 26. a3 {[%clk 0:02:12.1]} 26... Bd2 {[%clk 0:02:05.6]} 27. Bh4
{[%clk 0:02:10.4]} 27... Bc1 {[%clk 0:02:02.9]} 28. Bf6 {[%clk 0:02:09.8]} 28...
Kf7 {[%clk 0:02:01.7]} 29. Bd4 {[%clk 0:02:08.3]} 29... h5 {[%clk 0:01:58.8]}
30. Kf1 {[%clk 0:02:07.9]} 30... a5 {[%clk 0:01:54.6]} 31. h4 {[%clk 0:02:07.7]}
31... b5 {[%clk 0:01:53.8]} 32. Be5 {[%clk 0:02:07.8]} 32... b4 {[%clk
0:01:49.5]} 33. axb4 {[%clk 0:02:06.7]} 33... axb4 {[%clk 0:01:49]} 34. Ke1
{[%clk 0:02:06.8]} 34... Bh6 {[%clk 0:01:45.1]} 35. Kd1 {[%clk 0:02:04.5]} 35...
g5 {[%clk 0:01:44]} 36. hxg5 {[%clk 0:02:03.7]} 36... Bxg5 {[%clk 0:01:44.2]}
37. Kc2 {[%clk 0:02:03]} 37... Bf6 {[%clk 0:01:44.1]} 38. Bg3 {[%clk 0:02:00.5]}
38... h4 {[%clk 0:01:43.2]} 39. Bf4 {[%clk 0:01:58.1]} 39... e5 {[%clk
0:01:36.4]} 40. Bh2 {[%clk 0:01:56.5]} 40... e4 {[%clk 0:01:32.3]} 41. fxe4
{[%clk 0:01:55.7]} 41... fxe4 {[%clk 0:01:32.5]} 42. Kd2 {[%clk 0:01:55.4]}
42... Ke6 {[%clk 0:01:32]} 43. Kc2 {[%clk 0:01:55.3]} 43... Be5 {[%clk
0:01:30.9]} 44. Bg1 {[%clk 0:01:51]} 44... h3 {[%clk 0:01:30.7]} 45. Kb3 {[%clk
0:01:48.6]} 45... h2 {[%clk 0:01:30.7]} 46. Bxh2 {[%clk 0:01:47.7]} 46... Bxh2
{[%clk 0:01:31.2]} 47. Kxb4 {[%clk 0:01:47.6]} 47... Bg1 {[%clk 0:01:31.2]} 48.
b3 {[%clk 0:01:45.8]} 48... Bxf2 {[%clk 0:01:30.8]} 49. Kc4 {[%clk 0:01:46]}
49... Kf5 {[%clk 0:01:27.3]} 50. b4 {[%clk 0:01:43]} 50... Kf4 {[%clk
0:01:26.9]} 51. b5 {[%clk 0:01:41.9]} 51... Kf3 {[%clk 0:01:26.8]} 52. Kb4
{[%clk 0:01:37.3]} 52... e3 {[%clk 0:01:26.4]} 53. Kc3 {[%clk 0:01:36.7]} 53...
e2 {[%clk 0:01:26.5]} 54. Kd3 {[%clk 0:01:36.8]} 54... e1=Q {[%clk 0:01:26.1]}
55. Kc4 {[%clk 0:01:36.6]} 55... Qe2+ {[%clk 0:01:23.8]} 56. Kc3 {[%clk
0:01:35.3]} 56... Qxb5 {[%clk 0:01:23.1]} 57. Kc2 {[%clk 0:01:34.6]} 57... Qd5
{[%clk 0:01:21.1]} 58. Kc1 {[%clk 0:01:33.6]} 58... Ke2 {[%clk 0:01:20.3]} 59.
Kb1 {[%clk 0:01:32.8]} 59... Qc6 {[%clk 0:01:19.7]} 60. Ka2 {[%clk 0:01:32.5]}
60... Qb7 {[%clk 0:01:19.2]} 61. Ka1 {[%clk 0:01:32.1]} 61... Kd2 {[%clk
0:01:18.2]} 62. Ka2 {[%clk 0:01:31.9]} 62... Kc2 {[%clk 0:01:18.1]} 63. Ka3
{[%clk 0:01:32]} 63... Qb3# {[%clk 0:01:17.9]} 0-1

[Event "Betsys MČR v online bleskovém šachu 2021"]
[Site "Chess.com"]
[Date "2021.04.17"]
[Round "9"]
[White "sachistamartin"]
[Black "FMD-MP"]
[Result "0-1"]
[WhiteElo "1430"]
[BlackElo "1727"]
[TimeControl "180+1"]
[EndTime "10:29:12 PDT"]
[Termination "Uživatel FMD-MP zvítězil po vzdání soupeře"]

1. c4 {[%clk 0:03:00.9]} 1... c5 {[%clk 0:02:58.6]} 2. Nc3 {[%clk 0:02:59.4]}
2... Nc6 {[%clk 0:02:58.8]} 3. Nf3 {[%clk 0:02:59.1]} 3... g6 {[%clk 0:02:58.8]}
4. e3 {[%clk 0:02:57.8]} 4... Bg7 {[%clk 0:02:59.2]} 5. Be2 {[%clk 0:02:57.3]}
5... d6 {[%clk 0:02:58.7]} 6. O-O {[%clk 0:02:56.7]} 6... e5 {[%clk 0:02:54.9]}
7. b3 {[%clk 0:02:57.6]} 7... Nge7 {[%clk 0:02:54.8]} 8. Bb2 {[%clk 0:02:56]}
8... O-O {[%clk 0:02:55.1]} 9. d3 {[%clk 0:02:51.2]} 9... h6 {[%clk 0:02:54.3]}
10. Qd2 {[%clk 0:02:47.9]} 10... Kh7 {[%clk 0:02:54.3]} 11. Rad1 {[%clk
0:02:43.8]} 11... f5 {[%clk 0:02:53.9]} 12. a3 {[%clk 0:02:25.7]} 12... b6
{[%clk 0:02:52.8]} 13. d4 {[%clk 0:02:17.2]} 13... cxd4 {[%clk 0:02:46.8]} 14.
exd4 {[%clk 0:02:15.3]} 14... e4 {[%clk 0:02:45.6]} 15. Ne1 {[%clk 0:02:14]}
15... Nxd4 {[%clk 0:02:39.9]} 16. Nd5 {[%clk 0:02:11.2]} 16... Nxe2+ {[%clk
0:02:20.7]} 17. Qxe2 {[%clk 0:02:06.8]} 17... Nxd5 {[%clk 0:02:18.9]} 18. Bxg7
{[%clk 0:02:03.5]} 18... Kxg7 {[%clk 0:01:59]} 19. Rxd5 {[%clk 0:02:02.5]} 19...
Bb7 {[%clk 0:01:58.4]} 20. Rd4 {[%clk 0:01:58.1]} 20... Qf6 {[%clk 0:01:56.9]}
21. Nc2 {[%clk 0:01:55.2]} 21... Rad8 {[%clk 0:01:51.8]} 22. Rfd1 {[%clk
0:01:54.5]} 22... Rd7 {[%clk 0:01:45.4]} 23. Qe3 {[%clk 0:01:53.6]} 23... Rfd8
{[%clk 0:01:45.4]} 24. Nb4 {[%clk 0:01:49.8]} 24... f4 {[%clk 0:01:24.7]} 25.
Qc3 {[%clk 0:01:43.9]} 25... d5 {[%clk 0:01:13.2]} 26. Qh3 {[%clk 0:01:27.7]}
26... a5 {[%clk 0:00:55.9]} 27. Nxd5 {[%clk 0:01:22.2]} 27... Bxd5 {[%clk
0:00:55.2]} 28. cxd5 {[%clk 0:01:21.7]} 28... e3 {[%clk 0:00:43.1]} 29. f3
{[%clk 0:01:14.3]} 29... e2 {[%clk 0:00:39.4]} 30. Re1 {[%clk 0:01:13.6]} 30...
Qxd4+ {[%clk 0:00:39]} 31. Kh1 {[%clk 0:01:12.7]} 31... Qf2 {[%clk 0:00:38.7]}
0-1

[Event "Betsys MČR v online bleskovém šachu 2021"]
[Site "Chess.com"]
[Date "2021.04.17"]
[Round "9"]
[White "EXTREME_STRATEGY007"]
[Black "Miky2610"]
[Result "0-1"]
[WhiteElo "1289"]
[BlackElo "1825"]
[TimeControl "180+1"]
[EndTime "10:29:17 PDT"]
[Termination "Uživatel Miky2610 zvítězil po vzdání soupeře"]

1. e4 {[%clk 0:03:00.9]} 1... c6 {[%clk 0:03:00]} 2. d4 {[%clk 0:02:59.5]} 2...
d5 {[%clk 0:03:00.2]} 3. Nc3 {[%clk 0:02:58.1]} 3... dxe4 {[%clk 0:02:59.8]} 4.
Nxe4 {[%clk 0:02:57.7]} 4... Bf5 {[%clk 0:02:59.5]} 5. Ng3 {[%clk 0:02:56.9]}
5... Bg6 {[%clk 0:02:59.4]} 6. h4 {[%clk 0:02:56.3]} 6... h6 {[%clk 0:02:59.1]}
7. h5 {[%clk 0:02:55.7]} 7... Bh7 {[%clk 0:02:58.6]} 8. Nf3 {[%clk 0:02:55.2]}
8... Nd7 {[%clk 0:02:58.3]} 9. Bd3 {[%clk 0:02:52.8]} 9... Bxd3 {[%clk
0:02:56.8]} 10. Qxd3 {[%clk 0:02:52.4]} 10... Qc7 {[%clk 0:02:56.1]} 11. Ne4
{[%clk 0:02:43.8]} 11... Ngf6 {[%clk 0:02:53]} 12. g3 {[%clk 0:02:33.2]} 12...
O-O-O {[%clk 0:02:52.3]} 13. Bf4 {[%clk 0:02:32]} 13... Qb6 {[%clk 0:02:37.1]}
14. Qb3 {[%clk 0:02:24.4]} 14... Nd5 {[%clk 0:02:32.9]} 15. Qxb6 {[%clk
0:02:23.1]} 15... N7xb6 {[%clk 0:02:30.7]} 16. Ne5 {[%clk 0:02:21.1]} 16... Rg8
{[%clk 0:02:06.8]} 17. Nxf7 {[%clk 0:02:19.2]} 17... Rd7 {[%clk 0:02:05.6]} 18.
Ne5 {[%clk 0:02:15.8]} 18... Rd8 {[%clk 0:02:04.9]} 19. c4 {[%clk 0:02:05.8]}
19... Nxf4 {[%clk 0:02:04.1]} 20. gxf4 {[%clk 0:02:02.8]} 20... Rxd4 {[%clk
0:02:02.4]} 21. f3 {[%clk 0:02:00]} 21... Nxc4 {[%clk 0:02:01]} 22. Nxc4 {[%clk
0:01:57]} 22... Rxc4 {[%clk 0:02:00.8]} 23. Kd2 {[%clk 0:01:54.5]} 23... e6
{[%clk 0:02:00.2]} 24. Rac1 {[%clk 0:01:53.5]} 24... Bb4+ {[%clk 0:01:58.5]} 25.
Nc3 {[%clk 0:01:51.8]} 25... Rd4+ {[%clk 0:01:57.6]} 26. Ke3 {[%clk 0:01:50.3]}
26... Rgd8 {[%clk 0:01:55.8]} 27. Rhd1 {[%clk 0:01:48.2]} 27... Bxc3 {[%clk
0:01:51.8]} 28. Rxd4 {[%clk 0:01:42.9]} 28... Bxd4+ {[%clk 0:01:51.3]} 29. Ke4
{[%clk 0:01:43]} 29... Bf6 {[%clk 0:01:50.3]} 30. Rg1 {[%clk 0:01:39.3]} 30...
Rd7 {[%clk 0:01:48.9]} 31. f5 {[%clk 0:01:36.8]} 31... exf5+ {[%clk 0:01:47.3]}
32. Kxf5 {[%clk 0:01:36.2]} 32... Rd5+ {[%clk 0:01:44.8]} 33. Ke6 {[%clk
0:01:32.7]} 33... Rxh5 {[%clk 0:01:42.3]} 34. Kf7 {[%clk 0:01:29.3]} 34... Rg5
{[%clk 0:01:39.9]} 35. Re1 {[%clk 0:01:26.3]} 35... Kd7 {[%clk 0:01:38.7]} 36.
f4 {[%clk 0:01:15.2]} 36... Rg4 {[%clk 0:01:32.7]} 37. Rd1+ {[%clk 0:00:36.4]}
37... Kc7 {[%clk 0:01:29.5]} 38. f5 {[%clk 0:00:35.3]} 38... h5 {[%clk
0:01:26.8]} 39. Ke6 {[%clk 0:00:34.4]} 39... Re4+ {[%clk 0:01:20.9]} 40. Kf7
{[%clk 0:00:31.7]} 40... h4 {[%clk 0:01:19.9]} 0-1

[Event "Betsys MČR v online bleskovém šachu 2021"]
[Site "Chess.com"]
[Date "2021.04.17"]
[Round "9"]
[White "adiklan"]
[Black "misa2009"]
[Result "1-0"]
[WhiteElo "1899"]
[BlackElo "1512"]
[TimeControl "180+1"]
[EndTime "10:29:21 PDT"]
[Termination "Uživatel adiklan zvítězil po vzdání soupeře"]

1. e4 {[%clk 0:03:00.9]} 1... e5 {[%clk 0:02:58.8]} 2. Bc4 {[%clk 0:02:57]} 2...
Nc6 {[%clk 0:02:58.6]} 3. d4 {[%clk 0:02:54.8]} 3... exd4 {[%clk 0:02:58.2]} 4.
Nf3 {[%clk 0:02:54.6]} 4... Nf6 {[%clk 0:02:54.9]} 5. O-O {[%clk 0:02:53.4]}
5... Be7 {[%clk 0:02:52.8]} 6. e5 {[%clk 0:02:45.1]} 6... Ng4 {[%clk 0:02:46.3]}
7. Re1 {[%clk 0:02:44.5]} 7... d6 {[%clk 0:02:33.9]} 8. e6 {[%clk 0:02:40.4]}
8... Bxe6 {[%clk 0:02:25.6]} 9. Bxe6 {[%clk 0:02:39.7]} 9... fxe6 {[%clk
0:02:25.8]} 10. Rxe6 {[%clk 0:02:34]} 10... Nf6 {[%clk 0:02:25.4]} 11. Nxd4
{[%clk 0:02:27.5]} 11... Nxd4 {[%clk 0:02:22]} 12. Qxd4 {[%clk 0:02:28.4]} 12...
Qd7 {[%clk 0:02:19.7]} 13. Re2 {[%clk 0:02:16.4]} 13... O-O {[%clk 0:02:14]} 14.
Nc3 {[%clk 0:02:14.4]} 14... c5 {[%clk 0:02:09.9]} 15. Qe3 {[%clk 0:02:11.2]}
15... Rfe8 {[%clk 0:02:04.3]} 16. Qe6+ {[%clk 0:02:08.9]} 16... Qxe6 {[%clk
0:02:02.9]} 17. Rxe6 {[%clk 0:02:09.8]} 17... Bf8 {[%clk 0:01:58.3]} 18. Rxe8
{[%clk 0:02:07.6]} 18... Rxe8 {[%clk 0:01:58]} 19. Bf4 {[%clk 0:02:07.1]} 19...
d5 {[%clk 0:01:50.4]} 20. Kf1 {[%clk 0:01:49.9]} 20... d4 {[%clk 0:01:49.8]} 21.
Nb5 {[%clk 0:01:41.5]} 21... a6 {[%clk 0:01:46.9]} 22. Nd6 {[%clk 0:01:40.7]}
22... Bxd6 {[%clk 0:01:46.5]} 23. Bxd6 {[%clk 0:01:41.6]} 23... Rc8 {[%clk
0:01:42.6]} 24. Re1 {[%clk 0:01:37.9]} 24... b6 {[%clk 0:01:35.3]} 25. Re7
{[%clk 0:01:29.7]} 25... Nd5 {[%clk 0:01:20]} 26. Ra7 {[%clk 0:01:23.7]} 26...
a5 {[%clk 0:01:17.9]} 27. Be5 {[%clk 0:01:20.4]} 27... Re8 {[%clk 0:01:13.3]}
28. f4 {[%clk 0:01:13.1]} 28... Rf8 {[%clk 0:01:10.2]} 29. Rxg7+ {[%clk
0:01:11.6]} 29... Kh8 {[%clk 0:01:08.3]} 30. Rd7+ {[%clk 0:01:00.1]} 30... Nf6
{[%clk 0:01:07.4]} 31. Rd6 {[%clk 0:01:00.6]} 31... Kg7 {[%clk 0:01:03.4]} 32.
Rxb6 {[%clk 0:01:00.8]} 32... Kg6 {[%clk 0:01:02.6]} 33. Rxf6+ {[%clk
0:00:59.7]} 33... Rxf6 {[%clk 0:01:02.1]} 34. Bxf6 {[%clk 0:01:00.6]} 34... Kxf6
{[%clk 0:01:02.2]} 35. g4 {[%clk 0:01:01.5]} 35... Kg6 {[%clk 0:01:01.1]} 36.
Ke2 {[%clk 0:00:58.3]} 36... h5 {[%clk 0:01:00.9]} 37. h3 {[%clk 0:00:58.7]}
37... h4 {[%clk 0:00:56.3]} 38. Kd3 {[%clk 0:00:58.6]} 38... Kf6 {[%clk
0:00:54.7]} 39. Kc4 {[%clk 0:00:58.5]} 39... Ke6 {[%clk 0:00:54.2]} 40. Kxc5
{[%clk 0:00:58.9]} 1-0

[Event "Betsys MČR v online bleskovém šachu 2021"]
[Site "Chess.com"]
[Date "2021.04.17"]
[Round "9"]
[White "honzasoucek"]
[Black "Sfreedom01"]
[Result "1-0"]
[WhiteElo "1630"]
[BlackElo "1343"]
[TimeControl "180+1"]
[EndTime "10:29:21 PDT"]
[Termination "Uživatel honzasoucek zvítězil po vzdání soupeře"]

1. e4 {[%clk 0:02:58]} 1... e5 {[%clk 0:02:59.6]} 2. Nf3 {[%clk 0:02:58]} 2...
Nc6 {[%clk 0:02:59.2]} 3. d4 {[%clk 0:02:58.2]} 3... d6 {[%clk 0:02:59.8]} 4.
Nc3 {[%clk 0:02:56.5]} 4... exd4 {[%clk 0:02:59.6]} 5. Nxd4 {[%clk 0:02:56.1]}
5... Nxd4 {[%clk 0:03:00.2]} 6. Qxd4 {[%clk 0:02:56.7]} 6... Qf6 {[%clk
0:02:58.9]} 7. Qd3 {[%clk 0:02:53]} 7... Nh6 {[%clk 0:02:54.7]} 8. f3 {[%clk
0:02:50.9]} 8... Be7 {[%clk 0:02:54]} 9. Be3 {[%clk 0:02:49.5]} 9... O-O {[%clk
0:02:52.7]} 10. Be2 {[%clk 0:02:48.3]} 10... c5 {[%clk 0:02:51.9]} 11. O-O-O
{[%clk 0:02:41.6]} 11... Be6 {[%clk 0:02:48.5]} 12. g4 {[%clk 0:02:39.9]} 12...
c4 {[%clk 0:02:33.5]} 13. Qd2 {[%clk 0:02:38.2]} 13... Qe5 {[%clk 0:02:29.6]}
14. g5 {[%clk 0:02:27.8]} 14... Ng4 {[%clk 0:02:11.8]} 15. fxg4 {[%clk
0:02:27.1]} 15... b5 {[%clk 0:02:09]} 16. Nd5 {[%clk 0:02:13.4]} 16... Bxd5
{[%clk 0:02:04.2]} 17. Qxd5 {[%clk 0:02:12.3]} 17... Rad8 {[%clk 0:01:58.3]} 18.
Qxe5 {[%clk 0:02:10.6]} 18... dxe5 {[%clk 0:01:58.3]} 19. Bxa7 {[%clk 0:02:07]}
19... Bxg5+ {[%clk 0:01:54.3]} 20. Kb1 {[%clk 0:02:07.3]} 20... Ra8 {[%clk
0:01:48]} 21. Bc5 {[%clk 0:02:06.3]} 21... Rfd8 {[%clk 0:01:46.6]} 22. a3 {[%clk
0:02:05.5]} 22... g6 {[%clk 0:01:35.6]} 23. h4 {[%clk 0:02:02]} 23... Bf4 {[%clk
0:01:33.7]} 24. Be7 {[%clk 0:02:00.6]} 24... Rxd1+ {[%clk 0:01:26.5]} 25. Rxd1
{[%clk 0:01:59.5]} 25... Kg7 {[%clk 0:01:23.6]} 26. g5 {[%clk 0:01:59.2]} 26...
h6 {[%clk 0:01:23]} 27. Bf6+ {[%clk 0:01:58.2]} 27... Kh7 {[%clk 0:01:18.3]} 28.
Rd7 {[%clk 0:01:53.1]} 28... hxg5 {[%clk 0:01:12.4]} 29. Rxf7+ {[%clk
0:01:43.6]} 29... Kh6 {[%clk 0:01:08.5]} 30. hxg5+ {[%clk 0:01:40.7]} 30... Bxg5
{[%clk 0:01:08.7]} 31. Bxg5+ {[%clk 0:01:40.2]} 31... Kxg5 {[%clk 0:01:08.9]}
32. Rb7 {[%clk 0:01:39.4]} 32... Ra5 {[%clk 0:01:02.6]} 33. Kc1 {[%clk 0:01:33]}
33... Kf4 {[%clk 0:01:02.7]} 34. Kd2 {[%clk 0:01:33]} 34... Kxe4 {[%clk
0:01:00]} 35. Rg7 {[%clk 0:01:32.8]} 35... Ra6 {[%clk 0:00:55.8]} 36. Kc3 {[%clk
0:01:19.8]} 36... Ke3 {[%clk 0:00:51.9]} 37. Bg4 {[%clk 0:01:20]} 37... Kf4
{[%clk 0:00:48.4]} 38. Bc8 {[%clk 0:01:16.5]} 38... g5 {[%clk 0:00:47.2]} 39.
Bxa6 {[%clk 0:01:15.4]} 39... g4 {[%clk 0:00:46.4]} 40. Bxb5 {[%clk 0:01:15.8]}
40... g3 {[%clk 0:00:44.3]} 41. Bxc4 {[%clk 0:01:16.3]} 41... Kf3 {[%clk
0:00:40.2]} 42. Bd5+ {[%clk 0:01:16.1]} 42... e4 {[%clk 0:00:40.1]} 43. Kd4
{[%clk 0:01:15.8]} 43... g2 {[%clk 0:00:38.2]} 44. Bxe4+ {[%clk 0:01:15.9]}
44... Kf2 {[%clk 0:00:37.8]} 45. Rxg2+ {[%clk 0:01:16.4]} 1-0